fUST/lending_fUST_20250526
["ID","MTS","AMOUNT","RATE_DAILY","PERIOD"]
[362394471,1748247048471,-636.92,0.00023835,2]
[362394472,1748247048482,-589.64,0.00023835,2]
[362394473,1748247048491,-557.10365535,0.00023855,2]
[362394474,1748247048502,-935.0,0.00023857,15]
[362394475,1748247048511,-509.55417017,0.0002388,2]
[362394476,1748247048520,-8090.23653267,0.00023899,8]
[362394477,1748247049165,-500.0,0.00019274,2]
[362394478,1748247049175,-500.0,0.00019274,2]
[362394479,1748247049184,-500.0,0.00019274,2]
[362394480,1748247049194,-500.0,0.00019274,2]
[362394481,1748247049203,-500.0,0.00019274,2]
[362394482,1748247049212,-197.24988398,0.00019274,2]
[362394483,1748247049222,-500.0,0.00019274,2]
[362394484,1748247049231,-500.0,0.00019274,2]
[362394485,1748247049244,-500.0,0.00019274,2]
[362394486,1748247049254,-230.5307752,0.00023899,8]
[362394487,1748247298523,3449.71266685,0.00021918,30]
[362394490,1748248027130,-194.4374271,0.00018919,2]
[362394491,1748248027153,-300.0,0.00019177,2]
[362394492,1748248027176,-300.0,0.00019177,2]
[362394493,1748248027199,-430.0,0.00019178,2]
[362394494,1748248027223,-430.0,0.00019178,2]
[362394495,1748248027247,-430.0,0.00019178,2]
[362394496,1748248027271,-430.0,0.00019178,2]
[362394497,1748248027294,-123.2220683,0.00019178,2]
[362394499,1748248072206,185.287543,0.00013699,2]
[362394548,1748248232123,-337.88284459,0.00018714,2]
[362394551,1748248232426,-201.81297511,0.00018714,2]
[362394552,1748248232437,-178.715639,0.00018765,2]
[362394553,1748248232446,-7493.0,0.00018777,2]
[362394554,1748248232456,-300.0,0.00019177,2]
[362394555,1748248232466,-430.0,0.00019178,2]
[362394556,1748248232478,-430.0,0.00019178,2]
[362394557,1748248232488,-430.0,0.00019178,2]
[362394558,1748248232497,-430.0,0.00019178,2]
[362394559,1748248232507,-430.0,0.00019178,2]
[362394560,1748248232516,-430.0,0.00019178,2]
[362394561,1748248232526,-160.0,0.00019426,2]
[362394562,1748248232536,-160.0,0.00019426,2]
[362394563,1748248232546,-160.0,0.00019426,2]
[362394564,1748248232557,-212.59253735,0.00019426,2]
[362394565,1748248232571,-229.15402412,0.00019426,2]
[362394566,1748248232582,-160.0,0.00019426,2]
[362394567,1748248232592,-519.62552634,0.00019426,2]
[362394568,1748248232603,-423.08503179,0.00019426,2]
[362394569,1748248232614,-430.0,0.00019452,2]
[362394570,1748248232625,-430.0,0.00019452,2]
[362394571,1748248232635,-430.0,0.00019452,2]
[362394572,1748248232645,-430.0,0.00019452,2]
[362394573,1748248232657,-430.0,0.00019452,2]
[362394574,1748248232667,-430.0,0.00019452,2]
[362394575,1748248232678,-503.705,0.00019581,2]
[362394576,1748248232688,-207.4,0.00019711,2]
[362394577,1748248232698,-152.0,0.00019714,2]
[362394578,1748248232708,-500.0,0.00019725,2]
[362394579,1748248232718,-500.0,0.00019725,2]
[362394580,1748248232730,-500.0,0.00019725,2]
[362394581,1748248232740,-258.11360058,0.00019725,2]
[362394582,1748248232750,-500.0,0.00019725,2]
[362394583,1748248232760,-500.0,0.00019725,2]
[362394584,1748248232770,-500.0,0.00019725,2]
[362394585,1748248232781,-500.0,0.00019725,2]
[362394586,1748248232792,-290.69084013,0.00019725,2]
[362394587,1748248232803,-500.0,0.00019725,2]
[362394588,1748248232812,-472.90107927,0.00019725,2]
[362394589,1748248232822,-462.89229932,0.00019725,2]
[362394590,1748248232832,-500.0,0.00019725,2]
[362394591,1748248232842,-500.0,0.00019725,2]
[362394592,1748248232851,-500.0,0.00019725,2]
[362394593,1748248232861,-500.0,0.00019725,2]
[362394594,1748248232870,-500.0,0.00019725,2]
[362394595,1748248232881,-253.47651579,0.00019725,2]
[362394596,1748248232891,-500.0,0.00019725,2]
[362394597,1748248232901,-500.0,0.00019725,2]
[362394598,1748248232911,-500.0,0.00019725,2]
[362394599,1748248232920,-500.0,0.00019725,2]
[362394600,1748248232930,-500.0,0.00019725,2]
[362394601,1748248232940,-500.0,0.00019725,2]
[362394602,1748248232949,-500.0,0.00019725,2]
[362394603,1748248232959,-500.0,0.00019725,2]
[362394604,1748248232969,-500.0,0.00019725,2]
[362394605,1748248232979,-500.0,0.00019725,2]
[362394606,1748248232988,-430.0,0.00019726,2]
[362394607,1748248232998,-210.0,0.00019726,2]
[362394608,1748248233008,-405.64668008,0.00019726,2]
[362394609,1748248233017,-430.0,0.00019726,2]
[362394610,1748248233028,-430.0,0.00019726,2]
[362394611,1748248233038,-430.0,0.00019726,2]
[362394612,1748248233048,-6620.0856103,0.00019741,2]
[362394613,1748248233059,-150.0,0.00019818,2]
[362394614,1748248233068,-501.70479003,0.00019833,2]
[362394615,1748248233078,-375.53317931,0.00019833,2]
[362394616,1748248233088,-500.0,0.00019833,2]
[362394617,1748248233098,-506.2069999,0.00019896,2]
[362394618,1748248233108,-206.97571504,0.000199,2]
[362394619,1748248233118,-500.0,0.00019967,2]
[362394620,1748248233128,-567.85039165,0.00019967,2]
[362394621,1748248233138,-15851.64463127,0.0002,2]
[362394622,1748248233148,-430.0,0.0002,2]
[362394623,1748248233160,-345.22748998,0.0002,2]
[362394624,1748248233170,-161.00805994,0.0002,2]
[362394625,1748248233180,-430.0,0.0002,2]
[362394626,1748248233190,-430.0,0.0002,2]
[362394627,1748248233201,-185.287543,0.00020187,2]
[362394628,1748248233211,-430.0,0.00020273,2]
[362394629,1748248233220,-430.0,0.00020273,2]
[362394630,1748248233230,-430.0,0.00020273,2]
[362394631,1748248233241,-500.0,0.00020346,2]
[362394632,1748248233252,-1000.0,0.00020515,2]
[362394633,1748248233262,-430.0,0.00020547,2]
[362394634,1748248233272,-430.0,0.00020547,2]
[362394635,1748248233282,-430.0,0.00020547,2]
[362394636,1748248233291,-430.0,0.00020821,2]
[362394637,1748248233301,-430.0,0.00020821,2]
[362394638,1748248233312,-430.0,0.00020821,2]
[362394639,1748248233321,-152.423,0.00020976,2]
[362394640,1748248233331,-502.23869668,0.00021063,2]
[362394641,1748248233341,-215.0738,0.0002108,2]
[362394642,1748248233351,-430.0,0.00021095,2]
[362394643,1748248233361,-404.66463237,0.00021095,2]
[362394644,1748248233371,-381.53370496,0.00021095,2]
[362394645,1748248233381,-206.97571502,0.0002115,4]
[362394646,1748248233391,-430.0,0.00021369,2]
[362394647,1748248233400,-500.0,0.00021442,2]
[362394648,1748248233410,-1100.28143122,0.00021535,15]
[362394649,1748248233419,-430.0,0.00021643,2]
[362394650,1748248233429,-1190.49,0.000219,2]
[362394651,1748248233438,-323.75321464,0.00021917,2]
[362394652,1748248233448,-206.97571502,0.000224,7]
[362394653,1748248233458,-223.0315306,0.00022449,2]
[362394654,1748248233467,-500.0,0.00022538,2]
[362394655,1748248233477,-404.0,0.00022581,2]
[362394656,1748248233487,-187.0,0.00023,7]
[362394657,1748248233496,-168.0,0.00023,7]
[362394658,1748248233506,-691.104455,0.00023626,3]
[362394659,1748248233515,-206.97571502,0.0002365,9]
[362394660,1748248233526,-858.90515812,0.00023708,2]
[362394661,1748248233535,-500.0,0.00023806,2]
[362394662,1748248233545,-500.0,0.00023806,2]
[362394663,1748248233555,-228.5040651,0.00023806,2]
[362394664,1748248233570,-500.0,0.00023806,2]
[362394665,1748248233579,-500.0,0.00023806,2]
[362394666,1748248233589,-500.0,0.00023806,2]
[362394667,1748248233598,-500.0,0.00023806,2]
[362394668,1748248233609,-500.0,0.00023806,2]
[362394669,1748248233619,-500.0,0.00023806,2]
[362394670,1748248233629,-363.9573106,0.00023808,2]
[362394671,1748248233639,-363.9573106,0.00023808,2]
[362394672,1748248233649,-363.9573106,0.00023808,2]
[362394673,1748248233659,-363.9573106,0.00023808,2]
[362394674,1748248233669,-363.9573106,0.00023808,2]
[362394675,1748248233679,-363.9573106,0.00023808,2]
[362394676,1748248233689,-363.9573106,0.00023808,2]
[362394677,1748248233698,-363.9573106,0.00023808,2]
[362394678,1748248233707,-363.9573106,0.00023808,2]
[362394679,1748248233718,-363.9573106,0.00023808,2]
[362394680,1748248233728,-363.9573106,0.00023808,2]
[362394681,1748248233737,-357.2145525,0.00023808,2]
[362394682,1748248233747,-231.28369723,0.00023818,2]
[362394683,1748248233756,-349.500001,0.0002387,2]
[362394684,1748248233767,-858.90515812,0.00023881,2]
[362394685,1748248233776,-2000.0,0.000239,2]
[362394686,1748248233786,-2000.0,0.000239,2]
[362394687,1748248233795,-354.61,0.00023928,10]
[362394688,1748248233806,-612.77,0.00023938,10]
[362394689,1748248233816,-510.64,0.00023938,10]
[362394690,1748248233826,-425.54,0.00023938,10]
[362394691,1748248233836,-895.17,0.00023948,15]
[362394692,1748248233846,-133217.37547538,0.00023964,8]
[362394728,1748248238149,-500.0,0.00021534,2]
[362394730,1748248238162,-500.0,0.00021534,2]
[362394732,1748248238171,-500.0,0.00021534,2]
[362394735,1748248238181,-500.0,0.00021534,2]
[362394737,1748248238191,-500.0,0.00021534,2]
[362394739,1748248238201,-312.51759913,0.00021534,2]
[362394741,1748248238211,-550.0,0.00021534,2]
[362394743,1748248238221,-500.0,0.00021534,2]
[362394745,1748248238231,-500.0,0.00021534,2]
[362394747,1748248238240,-500.0,0.00021534,2]
[362394749,1748248238250,-500.0,0.00021534,2]
[362394752,1748248238260,-500.0,0.00021534,2]
[362394754,1748248238270,-409.89613722,0.00021534,2]
[362394756,1748248238281,-500.0,0.00021534,2]
[362394758,1748248238291,-500.0,0.00021534,2]
[362394760,1748248238301,-500.0,0.00021534,2]
[362394762,1748248238311,-500.0,0.00021534,2]
[362394764,1748248238321,-820.655751,0.00023948,15]
[362394766,1748248238331,-103704.48827979,0.00023964,8]
[362394867,1748248240403,-296.533642,0.00023948,15]
[362394868,1748248240418,-341.48038522,0.00023948,15]
[362394892,1748248246195,-960.0,0.00020171,2]
[362394893,1748248246205,-150.98597278,0.00023948,15]
[362394894,1748248246215,-12443.48999505,0.00023964,8]
[362394899,1748249215145,174.832869,0.00013699,2]
[362394901,1748249253155,-207.4,0.00019166,2]
[362394902,1748249253181,-583.71961287,0.00019177,2]
[362394903,1748249253204,-500.0,0.00019177,2]
[362394904,1748249253229,-476.74342668,0.00019177,2]
[362394905,1748249253254,-500.0,0.00019177,2]
[362394906,1748249253278,-248.62280926,0.00019177,2]
[362394907,1748249253303,-500.0,0.00019177,2]
[362394908,1748249253329,-500.0,0.00019177,2]
[362394909,1748249253355,-500.0,0.00019177,2]
[362394910,1748249253380,-500.0,0.00019177,2]
[362394911,1748249253405,-290.0,0.00019177,2]
[362394912,1748249253430,-430.0,0.00019178,2]
[362394913,1748249253453,-444.44,0.00019178,2]
[362394914,1748249253476,-435.04594194,0.00019178,2]
[362394915,1748249253499,-437.419172,0.00019178,2]
[362394916,1748249253521,-444.76786021,0.00019178,2]
[362394917,1748249253543,-430.0,0.00019178,2]
[362394918,1748249253564,-457.12849798,0.00019178,2]
[362394919,1748249253587,-430.0,0.00019178,2]
[362394920,1748249253609,-430.0,0.00019178,2]
[362394921,1748249253633,-430.0,0.00019178,2]
[362394922,1748249253656,-430.0,0.00019178,2]
[362394923,1748249253679,-430.0,0.00019178,2]
[362394924,1748249253704,-430.0,0.00019178,2]
[362394925,1748249253728,-438.64818622,0.00019178,2]
[362394926,1748249253751,-430.0,0.00019178,2]
[362394927,1748249253775,-430.0,0.00019178,2]
[362394928,1748249253800,-430.0,0.00019178,2]
[362394929,1748249253824,-430.0,0.00019178,2]
[362394930,1748249253847,-345.67572661,0.00019178,2]
[362394931,1748249253871,-435.84473469,0.00019178,2]
[362394932,1748249253893,-430.0,0.00019178,2]
[362394933,1748249253918,-430.0,0.00019178,2]
[362394934,1748249253941,-430.0,0.00019178,2]
[362394935,1748249253966,-430.0,0.00019178,2]
[362394936,1748249253988,-410.0,0.00019178,2]
[362394937,1748249254013,-430.0,0.00019178,2]
[362394938,1748249254036,-430.0,0.00019178,2]
[362394939,1748249254058,-430.0,0.00019178,2]
[362394940,1748249254082,-430.0,0.00019178,2]
[362394941,1748249254105,-430.0,0.00019178,2]
[362394942,1748249254129,-430.0,0.00019178,2]
[362394943,1748249254152,-430.0,0.00019178,2]
[362394944,1748249254176,-430.0,0.00019178,2]
[362394945,1748249254199,-430.0,0.00019178,2]
[362394946,1748249254223,-430.0,0.00019178,2]
[362394947,1748249254246,-430.0,0.00019178,2]
[362394948,1748249254268,-430.0,0.00019178,2]
[362394949,1748249254290,-430.0,0.00019178,2]
[362394950,1748249254311,-430.0,0.00019178,2]
[362394951,1748249254334,-430.0,0.00019178,2]
[362394952,1748249254357,-430.0,0.00019178,2]
[362394953,1748249254379,-430.0,0.00019178,2]
[362394954,1748249254402,-480.55,0.00019178,2]
[362394955,1748249254424,-430.0,0.00019178,2]
[362394956,1748249254449,-430.0,0.00019178,2]
[362394957,1748249254471,-507.72,0.00019178,2]
[362394958,1748249254492,-357.52,0.00019178,2]
[362394959,1748249254513,-162.73009233,0.00019178,2]
[362394960,1748249254534,-324.40680792,0.00019178,2]
[362394961,1748249254555,-430.0,0.00019178,2]
[362394962,1748249254576,-430.0,0.00019178,2]
[362394963,1748249254597,-430.0,0.00019178,2]
[362394964,1748249254620,-430.0,0.00019178,2]
[362394965,1748249254643,-430.0,0.00019178,2]
[362394966,1748249254666,-430.0,0.00019178,2]
[362394967,1748249254689,-430.0,0.00019178,2]
[362394968,1748249254711,-160.30031139,0.00019178,2]
[362394969,1748249254732,-430.0,0.00019178,2]
[362394970,1748249254755,-430.0,0.00019178,2]
[362394971,1748249254777,-190.0,0.00019178,2]
[362394972,1748249254800,-430.0,0.00019178,2]
[362394973,1748249254822,-575.62793655,0.00019178,2]
[362394974,1748249254845,-430.0,0.00019178,2]
[362394975,1748249254872,-430.0,0.00019178,2]
[362394976,1748249254895,-430.0,0.00019178,2]
[362394977,1748249254921,-430.0,0.00019178,2]
[362394978,1748249254945,-430.0,0.00019178,2]
[362394979,1748249254968,-440.7707812,0.00019178,2]
[362394980,1748249254990,-400.0,0.00019178,2]
[362394981,1748249255011,-430.0,0.00019178,2]
[362394982,1748249255034,-430.0,0.00019178,2]
[362394983,1748249255056,-430.0,0.00019178,2]
[362394984,1748249255078,-302.36907539,0.00019178,2]
[362394985,1748249255100,-430.0,0.00019178,2]
[362394986,1748249255121,-430.0,0.00019178,2]
[362394987,1748249255143,-186.65063757,0.00019178,2]
[362395011,1748249432273,-196.30577132,0.000189,2]
[362395012,1748249432282,-207.4,0.00019166,2]
[362395013,1748249432292,-324.91412866,0.00019178,2]
[362395014,1748249433221,-105.08587134,0.00019178,2]
[362395015,1748249433231,-430.0,0.00019178,2]
[362395016,1748249433243,-430.0,0.00019178,2]
[362395017,1748249433253,-430.0,0.00019178,2]
[362395018,1748249433263,-430.0,0.00019178,2]
[362395019,1748249433273,-430.0,0.00019178,2]
[362395020,1748249433283,-444.39,0.00019178,2]
[362395021,1748249433293,-430.0,0.00019178,2]
[362395022,1748249433303,-430.0,0.00019178,2]
[362395023,1748249433313,-430.13,0.00019178,2]
[362395024,1748249433322,-54.18319653,0.00019178,2]
[362395071,1748249438274,-375.81680347,0.00019178,2]
[362395073,1748249438284,-214.18319653,0.00019178,2]
[362395624,1748249443415,-293.68199388,0.00019178,2]
[362395626,1748249443426,-360.15,0.00019178,2]
[362395628,1748249443436,-430.0,0.00019178,2]
[362395630,1748249443445,-430.0,0.00019178,2]
[362395631,1748249443455,-430.0,0.00019178,2]
[362395633,1748249443464,-430.0,0.00019178,2]
[362395635,1748249443473,-430.0,0.00019178,2]
[362395637,1748249443483,-516.93897582,0.00019178,2]
[362395639,1748249443501,-430.0,0.00019178,2]
[362395641,1748249443515,-430.0,0.00019178,2]
[362395643,1748249443526,-430.0,0.00019178,2]
[362395645,1748249443536,-430.0,0.00019178,2]
[362395647,1748249443546,-430.0,0.00019178,2]
[362395650,1748249443555,-430.0,0.00019178,2]
[362395653,1748249443565,-430.0,0.00019178,2]
[362395654,1748249443575,-472.4,0.00019178,2]
[362395656,1748249443585,-430.0,0.00019178,2]
[362395658,1748249443596,-430.0,0.00019178,2]
[362395660,1748249443606,-430.0,0.00019178,2]
[362395662,1748249443615,-430.0,0.00019178,2]
[362395664,1748249443625,-269.59,0.00019178,2]
[362395666,1748249443635,-430.0,0.00019178,2]
[362395668,1748249443644,-430.0,0.00019178,2]
[362395669,1748249443654,-430.0,0.00019178,2]
[362395671,1748249443664,-439.67726639,0.00019178,2]
[362395673,1748249443674,-430.0,0.00019178,2]
[362395675,1748249443683,-430.0,0.00019178,2]
[362395677,1748249443693,-430.0,0.00019178,2]
[362395679,1748249443702,-430.0,0.00019178,2]
[362395680,1748249443712,-430.0,0.00019178,2]
[362395682,1748249443722,-500.73222341,0.00019178,2]
[362395684,1748249443731,-430.0,0.00019178,2]
[362395686,1748249443742,-437.12544848,0.00019178,2]
[362395688,1748249443751,-432.14,0.00019178,2]
[362395690,1748249443761,-446.38622108,0.00019178,2]
[362395691,1748249443771,-430.0,0.00019178,2]
[362395693,1748249443780,-435.9286559,0.00019178,2]
[362395695,1748249443790,-430.0,0.00019178,2]
[362395697,1748249443799,-243.34936243,0.00019178,2]
[362395698,1748249443808,-430.0,0.00019178,2]
[362395700,1748249443818,-550.56531828,0.00019335,2]
[362395702,1748249443827,-500.0,0.0001935,2]
[362395704,1748249443838,-519.7414045,0.00019392,2]
[362395706,1748249443848,-503.74243186,0.00019409,2]
[362395708,1748249443857,-423.08503179,0.00019444,2]
[362395709,1748249443866,-310.0,0.00019451,2]
[362395711,1748249443876,-444.09693948,0.00019452,2]
[362395713,1748249443885,-430.0,0.00019452,2]
[362395715,1748249443895,-430.0,0.00019452,2]
[362395716,1748249443905,-343.74,0.00019452,2]
[362395718,1748249443919,-430.0,0.00019452,2]
[362395720,1748249443928,-430.0,0.00019452,2]
[362395722,1748249443938,-430.0,0.00019452,2]
[362395724,1748249443947,-523.67,0.00019452,2]
[362395726,1748249443958,-430.0,0.00019452,2]
[362395728,1748249443968,-430.0,0.00019452,2]
[362395730,1748249443978,-430.0,0.00019452,2]
[362395731,1748249443989,-493.95,0.00019452,2]
[362395732,1748249443999,-430.0,0.00019452,2]
[362395733,1748249444009,-430.0,0.00019452,2]
[362395734,1748249444018,-430.0,0.00019452,2]
[362395735,1748249444028,-430.0,0.00019452,2]
[362395736,1748249444037,-430.0,0.00019452,2]
[362395737,1748249444046,-438.88343024,0.00019452,2]
[362395738,1748249444056,-430.0,0.00019452,2]
[362395739,1748249444065,-467.78614794,0.00019452,2]
[362395740,1748249444075,-333.83,0.00019452,2]
[362395741,1748249444084,-532.59856975,0.000195,2]
[362395742,1748249444094,-501.92673865,0.000195,2]
[362395743,1748249444104,-160.0,0.00019721,2]
[362395744,1748249444113,-212.59253735,0.00019721,2]
[362395745,1748249444128,-229.15402412,0.00019721,2]
[362395746,1748249444138,-150.74,0.00019726,2]
[362395747,1748249444148,-279.9,0.00019726,2]
[362395748,1748249444158,-430.0,0.00019726,2]
[362395749,1748249444167,-430.0,0.00019726,2]
[362395750,1748249444176,-430.0,0.00019726,2]
[362395751,1748249444186,-430.0,0.00019726,2]
[362395752,1748249444195,-538.72047566,0.00019726,2]
[362395753,1748249444205,-430.0,0.0002,2]
[362395754,1748249444214,-487.58,0.0002,2]
[362395755,1748249444223,-430.0,0.0002,2]
[362395756,1748249444233,-430.0,0.0002,2]
[362395757,1748249444243,-347.9300549,0.00020038,2]
[362395758,1748249444253,-2071.816,0.00020171,2]
[362395760,1748249444262,-404.0,0.00020171,2]
[362395762,1748249444272,-174.832869,0.00020187,2]
[362395763,1748249444282,-430.0,0.00020273,2]
[362395764,1748249444291,-174.37517786,0.00020273,2]
[362395765,1748249444300,-430.0,0.00020273,2]
[362395766,1748249444312,-500.0,0.00020346,2]
[362395767,1748249444321,-215.0738,0.00020535,2]
[362395768,1748249444330,-332.28,0.00020547,2]
[362395769,1748249444340,-430.0,0.00020547,2]
[362395770,1748249444350,-430.0,0.00020821,2]
[362395771,1748249444359,-208.28060425,0.000209,4]
[362395772,1748249444369,-152.424,0.00020976,2]
[362395773,1748249444378,-430.0,0.00021095,2]
[362395774,1748249444387,-208.28060418,0.00021167,4]
[362395775,1748249444397,-430.0,0.00021369,2]
[362395776,1748249444407,-208.28060418,0.00021433,5]
[362395778,1748249444416,-430.0,0.00021643,2]
[362395780,1748249444426,-208.28060418,0.000217,5]
[362395782,1748249444436,-1071.44,0.000219,2]
[362395783,1748249444445,-223.0315306,0.00021904,2]
[362395785,1748249444455,-430.0,0.00021917,2]
[362395787,1748249444464,-208.28060418,0.00021967,6]
[362395789,1748249444473,-157.0,0.00022,2]
[362395791,1748249444483,-245.26,0.00022191,2]
[362395792,1748249444492,-208.28060418,0.00022233,6]
[362395794,1748249444502,-208.28060418,0.000225,7]
[362395796,1748249444511,-500.0,0.00022538,2]
[362395798,1748249444521,-500.0,0.00022659,2]
[362395800,1748249444530,-568.76231939,0.00022659,2]
[362395801,1748249444540,-500.0,0.00022659,2]
[362395803,1748249444549,-500.0,0.00022659,2]
[362395805,1748249444559,-500.0,0.00022659,2]
[362395807,1748249444568,-500.0,0.00022659,2]
[362395809,1748249444578,-500.0,0.00022659,2]
[362395811,1748249444587,-500.0,0.00022659,2]
[362395813,1748249444596,-500.0,0.00022659,2]
[362395814,1748249444606,-336.92729605,0.00022659,2]
[362395816,1748249444615,-500.0,0.00022659,2]
[362395818,1748249444625,-398.43869924,0.00022659,2]
[362395820,1748249444635,-500.0,0.00022659,2]
[362395822,1748249444644,-500.0,0.00022659,2]
[362395824,1748249444654,-500.0,0.00022659,2]
[362395826,1748249444663,-500.0,0.00022659,2]
[362395828,1748249444672,-500.0,0.00022659,2]
[362395830,1748249444682,-500.0,0.00022659,2]
[362395831,1748249444691,-500.0,0.00022659,2]
[362395833,1748249444701,-500.0,0.00022659,2]
[362395835,1748249444711,-500.0,0.00022659,2]
[362395837,1748249444720,-246.35696491,0.00022659,2]
[362395839,1748249444730,-500.0,0.00022659,2]
[362395841,1748249444740,-13111.05619872,0.0002266,2]
[362395843,1748249444751,-208.28060418,0.00022767,7]
[362395845,1748249444761,-717.07,0.00022865,5]
[362395847,1748249444771,-555.75388672,0.000229,2]
[362395849,1748249444781,-717.07,0.00022965,7]
[362395851,1748249444790,-200.0,0.00022999,30]
[362395852,1748249444802,-6342.14,0.00022999,2]
[362395854,1748249444812,-19185.86806339,0.00023,2]
[362395856,1748249444821,-150.18,0.00023,7]
[362395858,1748249444831,-208.28060418,0.00023033,8]
[362395860,1748249444841,-713.07,0.00023055,10]
[362395862,1748249444850,-717.07,0.00023065,7]
[362395864,1748249444860,-717.07,0.00023165,5]
[362395866,1748249444869,-404.0,0.00023171,2]
[362395867,1748249444879,-154.2915306,0.0002326,2]
[362395869,1748249444889,-1140.0397524,0.0002326,2]
[362395871,1748249444898,-328.9742536,0.0002326,2]
[362395873,1748249444908,-316.2295476,0.0002326,2]
[362395875,1748249444922,-153.0,0.0002326,2]
[362395877,1748249444932,-153.0,0.0002326,2]
[362395879,1748249444941,-717.07,0.00023265,3]
[362395881,1748249444950,-231.28369723,0.00023273,2]
[362395883,1748249444961,-555.75388672,0.00023275,2]
[362395885,1748249444971,-208.28060418,0.000233,8]
[362395887,1748249444981,-717.07,0.00023365,2]
[362395888,1748249444990,-717.07,0.00023465,4]
[362395890,1748249445001,-2670.11888103,0.00023488,2]
[362395892,1748249445011,-717.07,0.00023565,6]
[362395894,1748249445021,-208.28060418,0.00023567,9]
[362395896,1748249445031,-621.994009,0.00023626,3]
[362395898,1748249445041,-500.0,0.00023637,2]
[362395900,1748249445051,-600.0,0.00023637,2]
[362395902,1748249445060,-555.75388672,0.0002365,2]
[362395904,1748249445069,-12000.0,0.0002366,2]
[362395906,1748249445078,-717.07,0.00023665,6]
[362395908,1748249445088,-3013932.0,0.000237,14]
[362395910,1748249445097,-153.0,0.00023753,2]
[362395912,1748249445106,-153.0,0.00023753,2]
[362395914,1748249445116,-717.07,0.00023765,4]
[362395916,1748249445125,-19071.12,0.00023782,8]
[362395918,1748249445135,-208.28060418,0.00023833,10]
[362395920,1748249445144,-717.07,0.00023865,5]
[362395922,1748249445153,-205.0,0.0002388,2]
[362395924,1748249445162,-2000.0,0.000239,2]
[362395926,1748249445171,-2000.0,0.000239,2]
[362395928,1748249445181,-196.30577132,0.000239,2]
[362395930,1748249445190,-500.0,0.0002392,2]
[362395932,1748249445199,-316.4786948,0.00023945,2]
[362395934,1748249445209,-176.2486289,0.00023945,2]
[362395950,1748249445407,-176.2486289,0.00023945,2]
[362395951,1748249445418,-175.9765103,0.00023945,2]
[362395952,1748249445428,-784.3,0.00023948,15]
[362395953,1748249445438,-717.07,0.00023965,7]
[362395954,1748249445449,-5090.96222451,0.00024,2]
[362395955,1748249445471,-9550.0,0.00024,2]
[362395956,1748249445482,-178.0,0.00024,4]
[362395957,1748249445493,-190.0,0.00024,7]
[362395958,1748249445503,-1004.0,0.00024,3]
[362395959,1748249445513,-190.0,0.00024,10]
[362395960,1748249445524,-180.66,0.00024,7]
[362395961,1748249445535,-180.66,0.00024,7]
[362395962,1748249445545,-180.66,0.00024,10]
[362395963,1748249445555,-180.66,0.00024,10]
[362395964,1748249445566,-2000.0,0.00024,2]
[362395965,1748249445577,-36720.57024477,0.00024,14]
[362395966,1748249445587,-555.75388672,0.00024025,2]
[362395967,1748249445597,-200.0,0.00024026,120]
[362395968,1748249445608,-200.0,0.0002406,9]